fUST/lending_fUST_20260607
["ID","MTS","AMOUNT","RATE_DAILY","PERIOD"]
[424372712,1780810145000,-500.0,7.596e-05,2]
[424372703,1780810145000,-500.0,7.596e-05,2]
[424372713,1780810145000,-500.0,7.596e-05,2]
[424372714,1780810145000,-500.0,7.596e-05,2]
[424372728,1780810145000,-500.0,7.596e-05,2]
[424372726,1780810145000,-500.0,7.596e-05,2]
[424372727,1780810145000,-500.0,7.596e-05,2]
[424372725,1780810145000,-500.0,7.596e-05,2]
[424372724,1780810145000,-500.0,7.596e-05,2]
[424372723,1780810145000,-500.0,7.596e-05,2]
[424372721,1780810145000,-500.0,7.596e-05,2]
[424372709,1780810145000,-500.0,7.596e-05,2]
[424372719,1780810145000,-500.0,7.596e-05,2]
[424372720,1780810145000,-500.0,7.596e-05,2]
[424372718,1780810145000,-500.0,7.596e-05,2]
[424372715,1780810145000,-500.0,7.596e-05,2]
[424372717,1780810145000,-500.0,7.596e-05,2]
[424372722,1780810145000,-500.0,7.596e-05,2]
[424372716,1780810145000,-500.0,7.596e-05,2]
[424372736,1780810146000,-500.0,7.596e-05,2]
[424372737,1780810146000,-500.0,7.596e-05,2]
[424372733,1780810146000,-500.0,7.596e-05,2]
[424372735,1780810146000,-500.70216611,7.596e-05,2]
[424372731,1780810146000,-500.0,7.596e-05,2]
[424372732,1780810146000,-500.0,7.596e-05,2]
[424372730,1780810146000,-500.0,7.596e-05,2]
[424372729,1780810146000,-500.0,7.596e-05,2]
[424372734,1780810146000,-500.0,7.596e-05,2]
[424372738,1780810146000,-500.0,7.596e-05,2]
[424372741,1780810146000,-500.0,7.596e-05,2]
[424372740,1780810146000,-500.0,7.596e-05,2]
[424372742,1780810146000,-500.0,7.596e-05,2]
[424372743,1780810146000,-500.0,7.596e-05,2]
[424372744,1780810146000,-500.0,7.596e-05,2]
[424372745,1780810146000,-500.0,7.596e-05,2]
[424372748,1780810146000,-151.16615309,7.598e-05,2]
[424372747,1780810146000,-500.0,7.596e-05,2]
[424372750,1780810146000,-7552.66549034,7.6e-05,2]
[424372749,1780810146000,-150.5994006,7.598e-05,2]
[424372739,1780810146000,-500.0,7.596e-05,2]
[424372746,1780810146000,-200.0,7.596e-05,2]
[424372755,1780810157000,-500.0,8.219e-05,2]
[424372753,1780810157000,-500.0,8.219e-05,2]
[424372758,1780810157000,-500.0,8.767e-05,2]
[424372751,1780810157000,-21104.13193026,7.6e-05,2]
[424372752,1780810157000,-500.0,8.219e-05,2]
[424372754,1780810157000,-584.23642455,8.219e-05,2]
[424372756,1780810157000,-500.0,8.493e-05,2]
[424372760,1780810157000,-500.0,9.315e-05,2]
[424372759,1780810157000,-500.0,9.041e-05,2]
[424372761,1780810157000,-500.0,9.589e-05,2]
[424372762,1780810157000,-500.0,9.863e-05,2]
[424372763,1780810157000,-500.0,0.00010137,2]
[424372764,1780810157000,-1039.17684569,0.00010828,2]
[424372757,1780810157000,-211.11486623,8.597e-05,2]
[424372765,1780810170000,-1181.83,0.00010828,2]
[424372766,1780810181000,-1181.83,0.00010828,2]
[424372767,1780810194000,-1265.41,0.00010828,2]
[424372768,1780810206000,-936.49,0.00010828,2]
[424372769,1780810220000,-205.72107961,0.00010828,2]
[424372786,1780810232000,-2780.63412706,0.00011,2]
[424372787,1780810232000,-184.007477,0.00014123,2]
[424372789,1780810232000,-184.007477,0.00015114,2]
[424372790,1780810232000,-226.55535519,0.00015844,2]
[424372791,1780810232000,-176.80350539,0.00016105,2]
[424372788,1780810232000,-199.521122,0.00015068,2]
[424372795,1780810232000,-808.52906721,0.00016898,2]
[424372792,1780810232000,-7.20397161,0.00016105,2]
[424372799,1780810232000,-194.96017675,0.00016898,2]
[424372797,1780810232000,-3944.87748355,0.00016898,2]
[424372801,1780810232000,-327.99057547,0.00016898,2]
[424372802,1780810232000,-433.45811007,0.00016898,2]
[424372793,1780810232000,-246.59344924,0.00016898,2]
[424372821,1780810238000,-200.90358568,0.00018977,2]
[424372824,1780810238000,-151.5,0.00018977,2]
[424372823,1780810238000,-151.5,0.00018977,2]
[424372822,1780810238000,-151.5,0.00018977,2]
[424372826,1780810238000,-204.55796159,0.00018977,2]
[424372825,1780810238000,-200.07286705,0.00018977,2]
[424372827,1780810238000,-201.0464105,0.00018977,2]
[424372829,1780810238000,-600.0,0.00019163,2]
[424372830,1780810238000,-3230.9196,0.00019178,2]
[424372836,1780810238000,-895.93,0.00019178,2]
[424372831,1780810238000,-500.0,0.00019178,2]
[424372835,1780810238000,-500.0,0.00019178,2]
[424372832,1780810238000,-500.0,0.00019178,2]
[424372834,1780810238000,-500.0,0.00019178,2]
[424372828,1780810238000,-200.5565406,0.00018977,2]
[424372819,1780810238000,-1364.7599149,0.00018928,2]
[424372808,1780810238000,-396.03113706,0.00018373,2]
[424372818,1780810238000,-18289.8328159,0.00018928,2]
[424372803,1780810238000,-4043.59113771,0.00016898,2]
[424372805,1780810238000,-184.007477,0.00017096,2]
[424372804,1780810238000,-168.146128,0.00017092,2]
[424372806,1780810238000,-676.29061599,0.00018311,2]
[424372812,1780810238000,-2553.60200033,0.00018479,2]
[424372833,1780810238000,-664.72,0.00019178,2]
[424372820,1780810238000,-151.5,0.00018977,2]
[424372807,1780810238000,-169.89115924,0.0001835,2]
[424372810,1780810238000,-224.75945946,0.00018474,2]
[424372809,1780810238000,-164.81627375,0.00018474,2]
[424372814,1780810238000,-856.2,0.0001863,2]
[424372816,1780810238000,-856.2,0.00018904,2]
[424372813,1780810238000,-924.78607399,0.00018479,2]
[424372815,1780810238000,-152.0,0.0001889,7]
[424372811,1780810238000,-1436.40112519,0.00018479,2]
[424372838,1780810238000,-520.31913254,0.00019178,2]
[424372817,1780810238000,-2915.35950816,0.00018912,7]
[424372839,1780810238000,-554.49,0.00019178,2]
[424372860,1780810238000,-500.0,0.00019178,2]
[424372859,1780810238000,-1133.13,0.00019178,2]
[424372861,1780810238000,-500.0,0.00019178,2]
[424372863,1780810238000,-500.0,0.00019178,2]
[424372864,1780810238000,-521.96,0.00019178,2]
[424372862,1780810238000,-306.24139031,0.00019178,2]
[424372857,1780810238000,-500.0,0.00019178,2]
[424372866,1780810238000,-1018.68,0.00019178,2]
[424372870,1780810238000,-500.0,0.00019178,2]
[424372872,1780810238000,-1718.39,0.00019178,2]
[424372869,1780810238000,-1387.99,0.00019178,2]
[424372867,1780810238000,-500.0,0.00019178,2]
[424372868,1780810238000,-500.0,0.00019178,2]
[424372837,1780810238000,-500.0,0.00019178,2]
[424372871,1780810238000,-500.0,0.00019178,2]
[424372858,1780810238000,-500.0,0.00019178,2]
[424372865,1780810238000,-500.0,0.00019178,2]
[424372853,1780810238000,-541.48,0.00019178,2]
[424372856,1780810238000,-649.0,0.00019178,2]
[424372844,1780810238000,-500.0,0.00019178,2]
[424372843,1780810238000,-491.366394,0.00019178,2]
[424372845,1780810238000,-500.0,0.00019178,2]
[424372841,1780810238000,-683.26,0.00019178,2]
[424372846,1780810238000,-500.0,0.00019178,2]
[424372848,1780810238000,-500.0,0.00019178,2]
[424372842,1780810238000,-500.0,0.00019178,2]
[424372849,1780810238000,-500.0,0.00019178,2]
[424372855,1780810238000,-500.69,0.00019178,2]
[424372847,1780810238000,-500.0,0.00019178,2]
[424372854,1780810238000,-500.0,0.00019178,2]
[424372840,1780810238000,-500.0,0.00019178,2]
[424372851,1780810238000,-500.0,0.00019178,2]
[424372850,1780810238000,-744.57,0.00019178,2]
[424372852,1780810238000,-267.24215427,0.00019178,2]
[424372906,1780810239000,-500.0,0.00019178,2]
[424372918,1780810239000,-1492.81,0.00019178,2]
[424372920,1780810239000,-500.0,0.00019178,2]
[424372917,1780810239000,-500.0,0.00019178,2]
[424372913,1780810239000,-2781.01,0.00019178,2]
[424372914,1780810239000,-500.0,0.00019178,2]
[424372910,1780810239000,-873.52,0.00019178,2]
[424372909,1780810239000,-500.0,0.00019178,2]
[424372908,1780810239000,-500.0,0.00019178,2]
[424372903,1780810239000,-1905.12,0.00019178,2]
[424372905,1780810239000,-500.0,0.00019178,2]
[424372919,1780810239000,-500.0,0.00019178,2]
[424372911,1780810239000,-500.0,0.00019178,2]
[424372912,1780810239000,-500.0,0.00019178,2]
[424372924,1780810239000,-500.0,0.00019178,2]
[424372915,1780810239000,-500.0,0.00019178,2]
[424372922,1780810239000,-500.0,0.00019178,2]
[424372921,1780810239000,-500.0,0.00019178,2]
[424372925,1780810239000,-235.86236029,0.00019178,2]
[424372923,1780810239000,-1092.87,0.00019178,2]
[424372927,1780810239000,-500.0,0.00019178,2]
[424372926,1780810239000,-2610.31,0.00019178,2]
[424372928,1780810239000,-500.0,0.00019178,2]
[424372933,1780810239000,-500.0,0.00019178,2]
[424372931,1780810239000,-500.0,0.00019178,2]
[424372932,1780810239000,-711.49,0.00019178,2]
[424372929,1780810239000,-500.0,0.00019178,2]
[424372907,1780810239000,-612.48,0.00019178,2]
[424372916,1780810239000,-164.85098513,0.00019178,2]
[424372904,1780810239000,-500.0,0.00019178,2]
[424372884,1780810239000,-643.09,0.00019178,2]
[424372902,1780810239000,-889.26,0.00019178,2]
[424372930,1780810239000,-500.0,0.00019178,2]
[424372873,1780810239000,-500.0,0.00019178,2]
[424372876,1780810239000,-500.0,0.00019178,2]
[424372875,1780810239000,-500.0,0.00019178,2]
[424372874,1780810239000,-1251.62,0.00019178,2]
[424372878,1780810239000,-712.77,0.00019178,2]
[424372877,1780810239000,-500.0,0.00019178,2]
[424372880,1780810239000,-500.0,0.00019178,2]
[424372881,1780810239000,-500.0,0.00019178,2]
[424372879,1780810239000,-1237.16,0.00019178,2]
[424372883,1780810239000,-713.88,0.00019178,2]
[424372882,1780810239000,-1117.6,0.00019178,2]
[424372885,1780810239000,-500.0,0.00019178,2]
[424372901,1780810239000,-500.0,0.00019178,2]
[424372886,1780810239000,-633.77,0.00019178,2]
[424372887,1780810239000,-1070.19,0.00019178,2]
[424372890,1780810239000,-500.0,0.00019178,2]
[424372894,1780810239000,-500.0,0.00019178,2]
[424372892,1780810239000,-309.34693897,0.00019178,2]
[424372889,1780810239000,-501.25,0.00019178,2]
[424372896,1780810239000,-500.0,0.00019178,2]
[424372893,1780810239000,-500.0,0.00019178,2]
[424372891,1780810239000,-1149.92,0.00019178,2]
[424372895,1780810239000,-500.0,0.00019178,2]
[424372898,1780810239000,-500.0,0.00019178,2]
[424372897,1780810239000,-500.0,0.00019178,2]
[424372900,1780810239000,-500.0,0.00019178,2]
[424372899,1780810239000,-1876.79,0.00019178,2]
[424372888,1780810239000,-500.0,0.00019178,2]
[424372935,1780810239000,-500.0,0.00019178,2]
[424372960,1780810239000,-500.0,0.00019178,2]
[424372937,1780810239000,-515.22,0.00019178,2]
[424372971,1780810239000,-500.0,0.00019178,2]
[424372969,1780810239000,-500.0,0.00019178,2]
[424372972,1780810239000,-751.05,0.00019178,2]
[424372974,1780810239000,-500.0,0.00019178,2]
[424372973,1780810239000,-500.0,0.00019178,2]
[424372975,1780810239000,-500.0,0.00019178,2]
[424372976,1780810239000,-4602.99,0.00019178,2]
[424372977,1780810239000,-500.0,0.00019178,2]
[424372979,1780810239000,-500.0,0.00019178,2]
[424372978,1780810239000,-596.72,0.00019178,2]
[424372982,1780810239000,-500.0,0.00019178,2]
[424372980,1780810239000,-1177.88,0.00019178,2]
[424372981,1780810239000,-415.67880362,0.00019178,2]
[424372970,1780810239000,-500.0,0.00019178,2]
[424372983,1780810239000,-500.0,0.00019178,2]
[424372984,1780810239000,-500.0,0.00019178,2]
[424372987,1780810239000,-500.0,0.00019178,2]
[424372986,1780810239000,-520.66,0.00019178,2]
[424372989,1780810239000,-500.0,0.00019178,2]
[424372988,1780810239000,-869.21,0.00019178,2]
[424372990,1780810239000,-708.47,0.00019178,2]
[424372992,1780810239000,-6531.08,0.00019178,2]
[424372995,1780810239000,-300.0,0.00019178,2]
[424372991,1780810239000,-996.16,0.00019178,2]
[424372998,1780810239000,-500.0,0.00019178,2]
[424372994,1780810239000,-500.0,0.00019178,2]
[424372993,1780810239000,-1853.24,0.00019178,2]
[424372997,1780810239000,-500.0,0.00019178,2]
[424372985,1780810239000,-500.0,0.00019178,2]
[424372967,1780810239000,-500.0,0.00019178,2]
[424372936,1780810239000,-500.0,0.00019178,2]
[424372965,1780810239000,-500.0,0.00019178,2]
[424372934,1780810239000,-500.0,0.00019178,2]
[424372938,1780810239000,-500.0,0.00019178,2]
[424372940,1780810239000,-500.86,0.00019178,2]
[424372939,1780810239000,-500.0,0.00019178,2]
[424372942,1780810239000,-500.0,0.00019178,2]
[424372941,1780810239000,-1635.28,0.00019178,2]
[424372944,1780810239000,-629.01,0.00019178,2]
[424372943,1780810239000,-500.0,0.00019178,2]
[424372968,1780810239000,-500.0,0.00019178,2]
[424372945,1780810239000,-500.0,0.00019178,2]
[424372948,1780810239000,-500.0,0.00019178,2]
[424372950,1780810239000,-500.0,0.00019178,2]
[424372947,1780810239000,-500.0,0.00019178,2]
[424372949,1780810239000,-500.0,0.00019178,2]
[424372946,1780810239000,-540.82,0.00019178,2]
[424372953,1780810239000,-507.53,0.00019178,2]
[424372951,1780810239000,-500.0,0.00019178,2]
[424372964,1780810239000,-500.0,0.00019178,2]
[424372963,1780810239000,-500.0,0.00019178,2]
[424372996,1780810239000,-500.0,0.00019178,2]
[424372962,1780810239000,-500.0,0.00019178,2]
[424372961,1780810239000,-3492.66,0.00019178,2]
[424372966,1780810239000,-500.0,0.00019178,2]
[424372958,1780810239000,-3168.57,0.00019178,2]
[424372956,1780810239000,-500.0,0.00019178,2]
[424372955,1780810239000,-669.05,0.00019178,2]
[424372957,1780810239000,-500.0,0.00019178,2]
[424372954,1780810239000,-503.15701207,0.00019178,2]
[424372952,1780810239000,-500.0,0.00019178,2]
[424372959,1780810239000,-500.0,0.00019178,2]
[424373042,1780810240000,-151.0,0.00019178,2]
[424373044,1780810240000,-257.064148,0.00019178,2]
[424373040,1780810240000,-151.0,0.00019178,2]
[424373041,1780810240000,-500.0,0.00019178,2]
[424373038,1780810240000,-151.0,0.00019178,2]
[424373036,1780810240000,-500.0,0.00019178,2]
[424373037,1780810240000,-1438.96,0.00019178,2]
[424373035,1780810240000,-533.98,0.00019178,2]
[424373033,1780810240000,-500.0,0.00019178,2]
[424373032,1780810240000,-500.0,0.00019178,2]
[424373031,1780810240000,-1698.38,0.00019178,2]
[424373039,1780810240000,-151.0,0.00019178,2]
[424373043,1780810240000,-151.0,0.00019178,2]
[424373058,1780810240000,-500.0,0.00019178,2]
[424373045,1780810240000,-500.0,0.00019178,2]
[424373047,1780810240000,-556.0,0.00019178,2]
[424373046,1780810240000,-500.0,0.00019178,2]
[424373050,1780810240000,-500.0,0.00019178,2]
[424373049,1780810240000,-687.75,0.00019178,2]
[424373051,1780810240000,-2223.54,0.00019178,2]
[424373052,1780810240000,-500.0,0.00019178,2]
[424373053,1780810240000,-500.0,0.00019178,2]
[424373056,1780810240000,-500.0,0.00019178,2]
[424373057,1780810240000,-541.30801064,0.00019178,2]
[424373055,1780810240000,-626.78,0.00019178,2]
[424373054,1780810240000,-1890.65,0.00019178,2]
[424373059,1780810240000,-500.0,0.00019178,2]
[424373034,1780810240000,-3515.62,0.00019178,2]
[424373048,1780810240000,-500.0,0.00019178,2]
[424373029,1780810240000,-1961.15,0.00019178,2]
[424373015,1780810240000,-500.0,0.00019178,2]
[424373027,1780810240000,-444.86961384,0.00019178,2]
[424373060,1780810240000,-876.93,0.00019178,2]
[424372999,1780810240000,-500.0,0.00019178,2]
[424373001,1780810240000,-1007.46,0.00019178,2]
[424373000,1780810240000,-500.0,0.00019178,2]
[424373002,1780810240000,-903.59,0.00019178,2]
[424373003,1780810240000,-500.0,0.00019178,2]
[424373005,1780810240000,-500.0,0.00019178,2]
[424373004,1780810240000,-500.0,0.00019178,2]
[424373008,1780810240000,-1000.0,0.00019178,2]
[424373009,1780810240000,-500.0,0.00019178,2]
[424373006,1780810240000,-500.0,0.00019178,2]
[424373007,1780810240000,-500.0,0.00019178,2]
[424373011,1780810240000,-1867.07,0.00019178,2]
[424373010,1780810240000,-1070.91,0.00019178,2]
[424373013,1780810240000,-500.0,0.00019178,2]
[424373012,1780810240000,-518.08,0.00019178,2]
[424373016,1780810240000,-500.0,0.00019178,2]
[424373014,1780810240000,-500.0,0.00019178,2]
[424373017,1780810240000,-500.0,0.00019178,2]
[424373018,1780810240000,-500.0,0.00019178,2]
[424373020,1780810240000,-500.0,0.00019178,2]
[424373019,1780810240000,-620.43,0.00019178,2]
[424373021,1780810240000,-1207.92,0.00019178,2]
[424373023,1780810240000,-500.0,0.00019178,2]
[424373022,1780810240000,-1123.12,0.00019178,2]
[424373024,1780810240000,-500.0,0.00019178,2]
[424373025,1780810240000,-500.0,0.00019178,2]
[424373026,1780810240000,-500.0,0.00019178,2]
[424373028,1780810240000,-1847.6,0.00019178,2]
[424373030,1780810240000,-1425.47,0.00019178,2]
[424373062,1780810240000,-3274.59,0.00019178,2]
[424373064,1780810240000,-1086.15,0.00019178,2]
[424373063,1780810240000,-500.0,0.00019178,2]
[424373105,1780810240000,-1175.93,0.00019178,2]
[424373101,1780810240000,-1271.53,0.00019178,2]
[424373109,1780810240000,-500.0,0.00019178,2]
[424373114,1780810240000,-500.0,0.00019178,2]
[424373112,1780810240000,-1283.66,0.00019178,2]
[424373113,1780810240000,-500.0,0.00019178,2]
[424373115,1780810240000,-3018.26,0.00019178,2]
[424373116,1780810240000,-658.17,0.00019178,2]
[424373117,1780810240000,-500.0,0.00019178,2]
[424373119,1780810240000,-500.0,0.00019178,2]
[424373120,1780810240000,-500.0,0.00019178,2]
[424373125,1780810240000,-500.0,0.00019178,2]
[424373123,1780810240000,-500.0,0.00019178,2]
[424373121,1780810240000,-500.0,0.00019178,2]
[424373122,1780810240000,-500.0,0.00019178,2]
[424373124,1780810240000,-5699.37,0.00019178,2]
[424373118,1780810240000,-551.63,0.00019178,2]
[424373126,1780810240000,-910.7,0.00019178,2]
[424373128,1780810240000,-500.0,0.00019178,2]
[424373129,1780810240000,-500.0,0.00019178,2]
[424373130,1780810240000,-500.0,0.00019178,2]
[424373127,1780810240000,-6412.99,0.00019178,2]
[424373131,1780810240000,-823.66,0.00019178,2]
[424373134,1780810240000,-500.0,0.00019178,2]
[424373133,1780810240000,-500.0,0.00019178,2]
[424373061,1780810240000,-500.0,0.00019178,2]
[424373132,1780810240000,-500.0,0.00019178,2]
[424373138,1780810240000,-500.0,0.00019178,2]
[424373140,1780810240000,-10928.99,0.00019178,2]
[424373107,1780810240000,-500.0,0.00019178,2]
[424373111,1780810240000,-500.0,0.00019178,2]
[424373136,1780810240000,-545.58,0.00019178,2]
[424373099,1780810240000,-500.0,0.00019178,2]
[424373110,1780810240000,-3433.46,0.00019178,2]
[424373065,1780810240000,-1073.11,0.00019178,2]
[424373070,1780810240000,-500.0,0.00019178,2]
[424373071,1780810240000,-500.0,0.00019178,2]
[424373067,1780810240000,-500.0,0.00019178,2]
[424373072,1780810240000,-500.0,0.00019178,2]
[424373073,1780810240000,-500.0,0.00019178,2]
[424373066,1780810240000,-500.0,0.00019178,2]
[424373068,1780810240000,-500.0,0.00019178,2]
[424373075,1780810240000,-500.0,0.00019178,2]
[424373076,1780810240000,-644.59,0.00019178,2]
[424373074,1780810240000,-4038.31,0.00019178,2]
[424373077,1780810240000,-500.0,0.00019178,2]
[424373078,1780810240000,-1361.0,0.00019178,2]
[424373069,1780810240000,-765.01,0.00019178,2]
[424373079,1780810240000,-1161.39,0.00019178,2]
[424373080,1780810240000,-500.0,0.00019178,2]
[424373097,1780810240000,-500.0,0.00019178,2]
[424373096,1780810240000,-3621.21,0.00019178,2]
[424373094,1780810240000,-962.46,0.00019178,2]
[424373092,1780810240000,-841.74,0.00019178,2]
[424373090,1780810240000,-1726.34,0.00019178,2]
[424373103,1780810240000,-500.0,0.00019178,2]
[424373088,1780810240000,-959.06,0.00019178,2]
[424373085,1780810240000,-17679.53,0.00019178,2]
[424373083,1780810240000,-500.0,0.00019178,2]
[424373082,1780810240000,-1105.86,0.00019178,2]
[424373084,1780810240000,-500.0,0.00019178,2]
[424373086,1780810240000,-500.0,0.00019178,2]
[424373081,1780810240000,-7693.23,0.00019178,2]
[424373189,1780810241000,-500.0,0.00019178,2]
[424373186,1780810241000,-500.0,0.00019178,2]
[424373187,1780810241000,-500.0,0.00019178,2]
[424373183,1780810241000,-500.0,0.00019178,2]
[424373182,1780810241000,-500.0,0.00019178,2]
[424373184,1780810241000,-500.0,0.00019178,2]
[424373180,1780810241000,-500.0,0.00019178,2]
[424373181,1780810241000,-500.0,0.00019178,2]
[424373188,1780810241000,-500.0,0.00019178,2]
[424373179,1780810241000,-500.0,0.00019178,2]
[424373185,1780810241000,-2209.43,0.00019178,2]
[424373178,1780810241000,-5097.99,0.00019178,2]
[424373195,1780810241000,-1367.81,0.00019178,2]
[424373191,1780810241000,-1952.95,0.00019178,2]
[424373192,1780810241000,-500.0,0.00019178,2]
[424373194,1780810241000,-748.4,0.00019178,2]
[424373196,1780810241000,-500.0,0.00019178,2]
[424373193,1780810241000,-4311.01,0.00019178,2]
[424373199,1780810241000,-500.0,0.00019178,2]
[424373198,1780810241000,-6460.66,0.00019178,2]
[424373197,1780810241000,-670.44,0.00019178,2]
[424373200,1780810241000,-500.0,0.00019178,2]
[424373202,1780810241000,-8342.1,0.00019178,2]
[424373201,1780810241000,-500.0,0.00019178,2]
[424373176,1780810241000,-500.0,0.00019178,2]
[424373190,1780810241000,-500.0,0.00019178,2]
[424373177,1780810241000,-4390.62,0.00019178,2]
[424373161,1780810241000,-500.0,0.00019178,2]
[424373173,1780810241000,-500.0,0.00019178,2]
[424373204,1780810241000,-860.65,0.00019178,2]
[424373142,1780810241000,-500.0,0.00019178,2]
[424373144,1780810241000,-500.0,0.00019178,2]
[424373146,1780810241000,-500.0,0.00019178,2]
[424373147,1780810241000,-1827.35,0.00019178,2]
[424373152,1780810241000,-1984.26,0.00019178,2]
[424373150,1780810241000,-500.0,0.00019178,2]
[424373154,1780810241000,-4926.74,0.00019178,2]
[424373155,1780810241000,-500.0,0.00019178,2]
[424373156,1780810241000,-500.0,0.00019178,2]
[424373158,1780810241000,-500.0,0.00019178,2]
[424373157,1780810241000,-500.0,0.00019178,2]
[424373175,1780810241000,-2416.07,0.00019178,2]
[424373160,1780810241000,-500.0,0.00019178,2]
[424373162,1780810241000,-500.0,0.00019178,2]
[424373164,1780810241000,-690.38,0.00019178,2]
[424373163,1780810241000,-8134.73,0.00019178,2]
[424373165,1780810241000,-500.0,0.00019178,2]
[424373166,1780810241000,-500.0,0.00019178,2]
[424373168,1780810241000,-75958.5,0.00019178,2]
[424373167,1780810241000,-500.0,0.00019178,2]
[424373174,1780810241000,-500.0,0.00019178,2]
[424373171,1780810241000,-500.0,0.00019178,2]
[424373169,1780810241000,-500.0,0.00019178,2]
[424373170,1780810241000,-500.0,0.00019178,2]
[424373172,1780810241000,-500.0,0.00019178,2]
[424373159,1780810241000,-637.68,0.00019178,2]
[424373203,1780810241000,-1024.92,0.00019178,2]
[424373149,1780810241000,-500.0,0.00019178,2]
[424373208,1780810241000,-500.0,0.00019178,2]
[424373238,1780810241000,-151.0,0.00019178,2]
[424373239,1780810241000,-151.0,0.00019178,2]
[424373236,1780810241000,-485.46,0.00019178,2]
[424373240,1780810241000,-151.0,0.00019178,2]
[424373242,1780810241000,-151.0,0.00019178,2]
[424373241,1780810241000,-151.0,0.00019178,2]
[424373243,1780810241000,-151.0,0.00019178,2]
[424373244,1780810241000,-151.0,0.00019178,2]
[424373246,1780810241000,-151.0,0.00019178,2]
[424373245,1780810241000,-151.0,0.00019178,2]
[424373250,1780810241000,-856.2,0.00019178,2]
[424373248,1780810241000,-151.0,0.00019178,2]
[424373237,1780810241000,-151.0,0.00019178,2]
[424373247,1780810241000,-151.0,0.00019178,2]
[424373252,1780810241000,-329.6325475,0.00019314,2]
[424373253,1780810241000,-449.51891892,0.00019314,2]
[424373254,1780810241000,-154.41171477,0.00019314,2]
[424373256,1780810241000,-3230.9196,0.00019452,2]
[424373255,1780810241000,-176.0556,0.00019315,2]
[424373257,1780810241000,-500.0,0.00019452,2]
[424373258,1780810241000,-10000.0,0.00019452,2]
[424373259,1780810241000,-500.0,0.00019452,2]
[424373262,1780810241000,-500.0,0.00019452,2]
[424373260,1780810241000,-664.72,0.00019452,2]
[424373261,1780810241000,-500.0,0.00019452,2]
[424373205,1780810241000,-500.0,0.00019178,2]
[424373251,1780810241000,-212.169,0.00019308,2]
[424373234,1780810241000,-500.0,0.00019178,2]
[424373249,1780810241000,-220.396142,0.00019178,2]
[424373233,1780810241000,-500.0,0.00019178,2]
[424373206,1780810241000,-3819.18,0.00019178,2]
[424373235,1780810241000,-487.0,0.00019178,2]
[424373207,1780810241000,-500.0,0.00019178,2]
[424373209,1780810241000,-500.0,0.00019178,2]
[424373210,1780810241000,-576.71,0.00019178,2]
[424373211,1780810241000,-3567.22,0.00019178,2]
[424373212,1780810241000,-500.0,0.00019178,2]
[424373213,1780810241000,-1083.34,0.00019178,2]
[424373214,1780810241000,-500.0,0.00019178,2]
[424373217,1780810241000,-3348.34,0.00019178,2]
[424373216,1780810241000,-393.02369893,0.00019178,2]
[424373219,1780810241000,-500.0,0.00019178,2]
[424373218,1780810241000,-1330.13,0.00019178,2]
[424373215,1780810241000,-500.0,0.00019178,2]